fUSD/lending_fUSD_20240929
["ID","MTS","AMOUNT","RATE_DAILY","PERIOD"]
[339484398,1727629848300,-1500.0,0.00010962,2]
[339484399,1727629848310,-1500.0,0.00010965,2]
[339484400,1727629848320,-150.0,0.00010969,2]
[339484401,1727629848329,-1500.0,0.00010977,2]
[339484402,1727629848338,-150.0,0.00010978,2]
[339484403,1727629848348,-549.2995672,0.00010979,2]
[339484404,1727629848359,-3497.41422255,0.0001098,2]
[339484405,1727629848639,-134616.05878952,0.0001098,2]
[339484406,1727629848649,-150.0,0.00010986,2]
[339484407,1727629848658,-150.0,0.00010986,2]
[339484408,1727629848668,-441.68766587,0.00010987,2]
[339484409,1727629848678,-1500.0,0.00010988,2]
[339484410,1727629848688,-500.0,0.00010988,2]
[339484411,1727629848698,-500.0,0.00010988,2]
[339484412,1727629848707,-500.0,0.00010988,2]
[339484413,1727629848717,-546.09,0.00010988,2]
[339484414,1727629848727,-2176.11,0.00010989,2]
[339484415,1727629848736,-4103.89,0.00010989,2]
[339484416,1727629848746,-3683.73,0.00010989,2]
[339484417,1727629848756,-3885.24,0.00010989,2]
[339484418,1727629848767,-1017.91,0.00010989,2]
[339484419,1727629848776,-2737.45,0.00010989,2]
[339484420,1727629848785,-1892.40036189,0.00010989,2]
[339484421,1727629848798,-934.77963811,0.00010989,2]
[339484422,1727629848807,-500.0,0.00010989,2]
[339484423,1727629848816,-6065.77,0.00010989,2]
[339484424,1727629848825,-1054.6,0.00010989,2]
[339484425,1727629848835,-500.0,0.00010989,2]
[339484426,1727629848845,-500.0,0.00010989,2]
[339484427,1727629848854,-500.0,0.00010989,2]
[339484428,1727629848864,-500.0,0.00010989,2]
[339484429,1727629848874,-1082.61,0.00010989,2]
[339484430,1727629848884,-1219.49,0.00010989,2]
[339484431,1727629848894,-857.89,0.00010989,2]
[339484432,1727629848904,-1490.51,0.00010989,2]
[339484433,1727629848914,-4111.86,0.00010989,2]
[339484434,1727629848924,-150.0,0.00010989,2]
[339484435,1727629848934,-500.0,0.00010989,2]
[339484436,1727629848944,-616.3,0.00010989,2]
[339484437,1727629848954,-1296.94,0.00010989,2]
[339484438,1727629848963,-593.94,0.00010989,2]
[339484439,1727629848973,-845.41,0.00010989,2]
[339484440,1727629848984,-1983.79,0.00010989,2]
[339484441,1727629848994,-2825.41,0.00010989,2]
[339484442,1727629849004,-500.0,0.00010989,2]
[339484443,1727629849013,-1463.94,0.00010989,2]
[339484444,1727629849023,-1427.97,0.00010989,2]
[339484445,1727629849034,-794.18,0.00010989,2]
[339484446,1727629849043,-500.0,0.00010989,2]
[339484447,1727629849053,-533.41,0.00010989,2]
[339484448,1727629849063,-1597.75,0.00010989,2]
[339484449,1727629849072,-917.95,0.00010989,2]
[339484450,1727629849082,-500.0,0.00010989,2]
[339484451,1727629849091,-500.0,0.00010989,2]
[339484452,1727629849101,-1500.0,0.0001099,2]
[339484453,1727629849110,-150.0,0.00010993,2]
[339484454,1727629849119,-1100.98,0.00010993,2]
[339484455,1727629849129,-506.03,0.00010993,2]
[339484456,1727629849138,-4863.26,0.00010993,2]
[339484457,1727629849147,-7729.4647174,0.00010994,2]
[339484458,1727629849156,-1330.587431,0.00010994,2]
[339484459,1727629849165,-500.0,0.00010995,2]
[339484460,1727629849174,-500.0,0.00010995,2]
[339484461,1727629849183,-788.95,0.00010995,2]
[339484462,1727629849192,-500.0,0.00010995,2]
[339484463,1727629849201,-551.1,0.00010995,2]
[339484464,1727629849210,-500.0,0.00010995,2]
[339484465,1727629849220,-500.0,0.00010995,2]
[339484466,1727629849229,-500.0,0.00010995,2]
[339484467,1727629849239,-500.0,0.00010995,2]
[339484468,1727629849248,-781.67,0.00010995,2]
[339484469,1727629849257,-1041.03,0.00010995,2]
[339484470,1727629849267,-778.52,0.00010995,2]
[339484471,1727629849281,-500.66963057,0.00010995,2]
[339484472,1727629849290,-5833.79,0.00010995,2]
[339484473,1727629849301,-604.94113688,0.00010995,2]
[339484474,1727629849311,-500.0,0.00010995,2]
[339484475,1727629849320,-500.69832408,0.00010995,2]
[339484476,1727629849330,-1855.07,0.00010995,2]
[339484477,1727629849339,-500.0,0.00010995,2]
[339484478,1727629849349,-500.0,0.00010995,2]
[339484479,1727629849360,-500.0,0.00010995,2]
[339484480,1727629849370,-500.0,0.00010995,2]
[339484481,1727629849380,-500.0,0.00010995,2]
[339484482,1727629849390,-1580.12,0.00010995,2]
[339484483,1727629849399,-500.0,0.00010995,2]
[339484484,1727629849409,-500.0,0.00010995,2]
[339484485,1727629849418,-977.56,0.00010995,2]
[339484486,1727629849429,-500.0,0.00010995,2]
[339484487,1727629849438,-500.0,0.00010995,2]
[339484488,1727629849449,-500.0,0.00010995,2]
[339484489,1727629849458,-500.0,0.00010995,2]
[339484490,1727629849468,-1132.65,0.00010995,2]
[339484491,1727629849477,-500.0,0.00010995,2]
[339484492,1727629849487,-1917.5,0.00010995,2]
[339484493,1727629849497,-500.0,0.00010995,2]
[339484494,1727629849507,-500.0,0.00010995,2]
[339484495,1727629849516,-500.0,0.00010995,2]
[339484496,1727629849526,-500.0,0.00010995,2]
[339484497,1727629849536,-474.24238024,0.00010995,2]
[339484498,1727629849546,-242.83,0.00010995,2]
[339484499,1727629849555,-500.0,0.00010995,2]
[339484500,1727629849565,-500.0,0.00010995,2]
[339484501,1727629849574,-181.70095904,0.00010995,2]
[339484502,1727629849584,-500.0,0.00010995,2]
[339484503,1727629849593,-500.0,0.00010995,2]
[339484504,1727629849602,-500.0,0.00010995,2]
[339484505,1727629849612,-500.0,0.00010995,2]
[339484506,1727629849621,-500.65806306,0.00010995,2]
[339484507,1727629849630,-500.0,0.00010995,2]
[339484508,1727629849639,-1030.35,0.00010995,2]
[339484509,1727629849650,-500.0,0.00010995,2]
[339484510,1727629849659,-500.0,0.00010995,2]
[339484511,1727629849668,-500.0,0.00010995,2]
[339484512,1727629849677,-254.5,0.00010995,2]
[339484513,1727629849685,-500.0,0.00010995,2]
[339484514,1727629849695,-542.44,0.00010995,2]
[339484515,1727629849704,-500.0,0.00010995,2]
[339484516,1727629849714,-1382.35,0.00010995,2]
[339484517,1727629849723,-353.67668449,0.00010995,2]
[339484518,1727629849733,-3830.49,0.00010995,2]
[339484519,1727629849742,-500.0,0.00010995,2]
[339484520,1727629849751,-500.0,0.00010995,2]
[339484521,1727629849761,-1337.57,0.00010995,2]
[339484522,1727629849770,-500.0,0.00010995,2]
[339484523,1727629849780,-642.66508063,0.00010995,2]
[339484524,1727629849789,-500.0,0.00010995,2]
[339484525,1727629849798,-935.38,0.00010995,2]
[339484526,1727629849807,-500.0,0.00010995,2]
[339484527,1727629849816,-530.56,0.00010995,2]
[339484528,1727629849826,-500.0,0.00010995,2]
[339484529,1727629849834,-984.93,0.00010995,2]
[339484530,1727629849843,-500.0,0.00010995,2]
[339484531,1727629849853,-500.0,0.00010995,2]
[339484532,1727629849862,-3875.52,0.00010995,2]
[339484533,1727629849872,-838.14,0.00010995,2]
[339484534,1727629849882,-1585.33,0.00010995,2]
[339484535,1727629849891,-500.0,0.00010995,2]
[339484536,1727629849901,-1571.79,0.00010995,2]
[339484537,1727629849910,-2697.09,0.00010995,2]
[339484538,1727629849920,-500.0,0.00010995,2]
[339484539,1727629849929,-4871.87,0.00010995,2]
[339484540,1727629849939,-500.0,0.00010995,2]
[339484541,1727629849949,-500.0,0.00010995,2]
[339484542,1727629849958,-1796.73,0.00010995,2]
[339484543,1727629849967,-500.0,0.00010995,2]
[339484544,1727629849976,-1037.81,0.00010995,2]
[339484545,1727629849986,-500.0,0.00010995,2]
[339484546,1727629849996,-3187.1,0.00010995,2]
[339484547,1727629850006,-833.15,0.00010995,2]
[339484548,1727629850015,-5466.02,0.00010995,2]
[339484549,1727629850025,-500.0,0.00010995,2]
[339484550,1727629850034,-500.0,0.00010995,2]
[339484551,1727629850043,-568.79374189,0.00010995,2]
[339484552,1727629850053,-500.0,0.00010995,2]
[339484553,1727629850063,-500.0,0.00010995,2]
[339484554,1727629850072,-500.0,0.00010995,2]
[339484555,1727629850081,-500.0,0.00010995,2]
[339484556,1727629850090,-1827.97,0.00010995,2]
[339484557,1727629850100,-500.0,0.00010995,2]
[339484558,1727629850109,-500.0,0.00010995,2]
[339484559,1727629850119,-2078.86,0.00010995,2]
[339484560,1727629850128,-500.0,0.00010995,2]
[339484561,1727629850137,-500.0,0.00010995,2]
[339484562,1727629850146,-1100.98,0.00010995,2]
[339484563,1727629850155,-500.0,0.00010995,2]
[339484564,1727629850164,-681.75,0.00010995,2]
[339484565,1727629850174,-500.0,0.00010995,2]
[339484566,1727629850182,-1643.32,0.00010995,2]
[339484567,1727629850192,-575.96,0.00010995,2]
[339484568,1727629850201,-324.95553371,0.00010995,2]
[339484569,1727629850521,-3162.60000008,0.00010995,2]
[339484570,1727629850534,-320.91406874,0.00010995,2]
[339484571,1727629850545,-974.86039747,0.00010995,2]
[339484572,1727629850555,-506.03,0.00010995,2]
[339484573,1727629850564,-500.0,0.00010995,2]
[339484574,1727629850574,-467.0958025,0.00010995,2]
[339484575,1727629850586,-1736.41306025,0.00010995,2]
[339484576,1727629850598,-2659.75113725,0.00010995,2]
[339484577,1727629850607,-1708.62,0.00010995,2]
[339484578,1727629850616,-2189.88,0.00010995,2]
[339484579,1727629850626,-860.96807218,0.00010995,2]
[339484580,1727629850645,-6578.09192782,0.00010995,2]
[339484581,1727629850654,-500.0,0.00010995,2]
[339484582,1727629850663,-7633.51,0.00010995,2]
[339484583,1727629850673,-500.0,0.00010995,2]
[339484584,1727629850682,-61.86671855,0.00010995,2]
[339484585,1727629850694,-1015.75187423,0.00010995,2]
[339484586,1727629850705,-639.318,0.00010995,2]
[339484587,1727629850717,-172.55340722,0.00010995,2]
[339484588,1727629850726,-336.57200288,0.00010995,2]
[339484589,1727629850738,-835.71347657,0.00010995,2]
[339484590,1727629851064,-184.54452055,0.00010995,2]
[339484591,1727629851074,-500.0,0.00010995,2]
[339484592,1727629851084,-1394.62,0.00010995,2]
[339484593,1727629851094,-500.0,0.00010995,2]
[339484594,1727629851104,-1244.43,0.00010995,2]
[339484595,1727629851114,-500.0,0.00010995,2]
[339484596,1727629851123,-2380.27,0.00010995,2]
[339484597,1727629851133,-500.0,0.00010995,2]
[339484598,1727629851143,-500.0,0.00010995,2]
[339484599,1727629851154,-500.0,0.00010995,2]
[339484600,1727629851164,-500.0,0.00010995,2]
[339484601,1727629851174,-500.0,0.00010995,2]
[339484602,1727629851183,-500.0,0.00010995,2]
[339484603,1727629851193,-500.0,0.00010995,2]
[339484604,1727629851203,-546.09,0.00010995,2]
[339484605,1727629851213,-288.51645232,0.00010996,2]
[339484606,1727629851223,-500.0,0.00010996,2]
[339484607,1727629851233,-500.0,0.00010996,2]
[339484608,1727629851243,-500.0,0.00010996,2]
[339484609,1727629851253,-500.0,0.00010996,2]
[339484610,1727629851263,-203.23579974,0.00010996,2]
[339484611,1727629851892,-296.76420026,0.00010996,2]
[339484612,1727629851902,-500.0,0.00010996,2]
[339484613,1727629851911,-588.0900088,0.00010996,2]
[339484614,1727629851921,-500.0,0.00010996,2]
[339484615,1727629851931,-500.43607205,0.00010996,2]
[339484616,1727629851941,-500.0,0.00010996,2]
[339484617,1727629851950,-500.0,0.00010996,2]
[339484618,1727629851960,-500.0,0.00010996,2]
[339484619,1727629851970,-500.0,0.00010996,2]
[339484620,1727629851980,-500.0,0.00010996,2]
[339484621,1727629851989,-500.0,0.00010996,2]
[339484622,1727629851999,-500.0,0.00010996,2]
[339484623,1727629852009,-500.0,0.00010996,2]
[339484624,1727629852018,-500.0,0.00010996,2]
[339484625,1727629852029,-500.0,0.00010996,2]
[339484626,1727629852039,-500.0,0.00010996,2]
[339484627,1727629852049,-500.47629455,0.00010996,2]
[339484628,1727629852059,-500.0,0.00010996,2]
[339484629,1727629852069,-767.9,0.00010996,2]
[339484630,1727629852079,-500.0,0.00010996,2]
[339484631,1727629852089,-500.0,0.00010996,2]
[339484632,1727629852098,-500.0,0.00010996,2]
[339484633,1727629852108,-500.0,0.00010996,2]
[339484634,1727629852121,-500.0,0.00010996,2]
[339484635,1727629852131,-933.6,0.00010996,2]
[339484636,1727629852141,-95.73342434,0.00010996,2]
[339484637,1727629852154,-404.26657566,0.00010996,2]
[339484638,1727629852165,-49.58338075,0.00010996,2]
[339484665,1727630032641,900.0,9.902e-05,2]
[339484667,1727630068411,155.38,9.985e-05,2]
[339484670,1727630095970,10922.06,9.968e-05,2]
[339484673,1727630215602,356.77,8.219e-05,2]
[339484675,1727630296307,1315.58592,9.943e-05,2]
[339484676,1727630312381,250.0,9.919e-05,2]
[339484677,1727630379699,250.0,9.871e-05,2]
[339484679,1727630414082,150.0,9.954e-05,2]
[339484680,1727630424369,4679.11,9.888e-05,2]
[339484681,1727630442822,1000.0,9.872e-05,2]
[339484683,1727630515546,1155.52,9.872e-05,2]
[339484684,1727630528204,335.72,9.863e-05,2]
[339484685,1727630549181,200.0,9.863e-05,2]
[339484692,1727630633744,1195.08,9.863e-05,2]
[339484693,1727630690527,23900.0,9.853e-05,2]
[339484695,1727630705933,150.0,9.888e-05,2]
[339484696,1727630708499,153.41075135,9.888e-05,2]
[339484697,1727630715182,176.88561913,9.888e-05,2]
[339484700,1727630741654,156.26,9.86e-05,2]
[339484701,1727630755030,1468.31623694,6.94e-05,2]
[339484703,1727630810278,460.6,9.857e-05,2]
[339484704,1727630820621,338.93,8.219e-05,2]
[339484712,1727630928558,250.0,9.848e-05,2]
[339484713,1727630968241,1466.786944,9.95e-05,2]
[339484747,1727630997491,200.0,9.845e-05,2]
[339484748,1727630998545,250.0,9.845e-05,2]
[339484756,1727631032194,-1050.0,0.0001,2]
[339484757,1727631032204,-300.0,0.00010041,2]
[339484758,1727631032213,-1749.91875805,0.00010042,2]
[339484759,1727631032224,-368.7704374,0.00010042,2]
[339484760,1727631032236,-7433.48745394,0.00010042,2]
[339484761,1727631032245,-245.27,0.00010105,2]
[339484762,1727631032255,-187.27,0.00010401,2]
[339484763,1727631032264,-5049.47016237,0.00010442,2]
[339484764,1727631032274,-1380.55500402,0.00010442,2]
[339484765,1727631032284,-5398.56850634,0.00010442,2]
[339484766,1727631032293,-8418.4537,0.00010461,2]
[339484767,1727631032302,-338.93,0.00010469,2]
[339484768,1727631032315,-161.130256,0.0001063,2]
[339484769,1727631032325,-441.768301,0.0001063,2]
[339484770,1727631032335,-199.923539,0.0001063,2]
[339484771,1727631032345,-177.500388,0.0001063,2]
[339484772,1727631032354,-499.99,0.0001063,2]
[339484773,1727631032364,-150.976909,0.0001063,2]
[339484774,1727631032374,-209.261316,0.0001063,2]
[339484775,1727631032384,-236.629528,0.0001063,2]
[339484776,1727631032393,-574.645113,0.0001063,2]
[339484777,1727631032403,-150.0,0.00010756,2]
[339484778,1727631032413,-442.53,0.00010757,2]
[339484779,1727631032422,-2491.72,0.00010757,2]
[339484780,1727631032432,-1588.6922,0.00010758,2]
[339484781,1727631032441,-606.4471,0.00010758,2]
[339484782,1727631032450,-1422.4903,0.00010758,2]
[339484783,1727631032460,-1540.8068,0.00010758,2]
[339484784,1727631032469,-33188.8299,0.00010758,2]
[339484785,1727631032479,-2001.6043,0.00010758,2]
[339484786,1727631032489,-102.42003333,0.00010758,2]
[339484787,1727631032501,-1534.56186667,0.00010758,2]
[339484788,1727631032511,-941.32160933,0.00010758,2]
[339484789,1727631032522,-297.99594133,0.00010758,2]
[339484790,1727631032534,-450.037073,0.00010758,2]
[339484791,1727631032551,-3562.68797634,0.00010758,2]
[339484792,1727631032568,-441.768301,0.00010763,2]
[339484793,1727631032577,-790.19,0.00010763,2]
[339484794,1727631032586,-236.629528,0.00010763,2]
[339484795,1727631032596,-574.645113,0.00010763,2]
[339484796,1727631032605,-150.0,0.00010764,2]
[339484797,1727631032614,-1119.49290176,0.00010776,2]
[339484798,1727631032623,-1061.23213614,0.00010776,2]
[339484799,1727631032633,-150.0,0.00010793,2]
[339484800,1727631032642,-428.44,0.000108,2]
[339484801,1727631032651,-300.0,0.000108,2]
[339484802,1727631032660,-294.24,0.000108,2]
[339484803,1727631032670,-300.76,0.000108,2]
[339484804,1727631032680,-150.0,0.000108,2]
[339484805,1727631032689,-300.0,0.000108,2]
[339484806,1727631032698,-358.25,0.000108,2]
[339484807,1727631032708,-150.0,0.000108,2]
[339484808,1727631032717,-428.44,0.000108,2]
[339484809,1727631032726,-150.0,0.000108,2]
[339484810,1727631032736,-753.88,0.000108,2]
[339484811,1727631032745,-716.57,0.000108,2]
[339484812,1727631032755,-358.32,0.000108,2]
[339484813,1727631032764,-720.78,0.000108,2]
[339484814,1727631032775,-177.500388,0.00010807,2]
[339484815,1727631032784,-762.4338549,0.00010838,2]
[339484816,1727631032794,-372.40673539,0.00010847,2]
[339484817,1727631032809,-191.661,0.00010848,2]
[339484818,1727631032819,-568.402,0.00010848,2]
[339484819,1727631032828,-1433.92938976,0.00010857,3]
[339484820,1727631032839,-122464.75622471,0.00010858,2]
[339484821,1727631032851,-7929.82408757,0.00010858,2]
[339484822,1727631032863,-1649.09184316,0.00010858,2]
[339484823,1727631032875,-719.4241955,0.00010858,2]
[339484824,1727631032886,-1074.32,0.00010858,2]
[339484825,1727631032897,-17578.32732118,0.00010858,2]
[339484826,1727631032909,-3358.21971764,0.00010858,2]
[339484827,1727631032920,-397.92779334,0.00010858,2]
[339484828,1727631032931,-388.88750137,0.00010858,2]
[339484829,1727631032942,-9673.74898421,0.00010858,2]
[339484830,1727631032954,-2863.96867714,0.00010858,2]
[339484831,1727631032964,-365.35210606,0.00010858,2]
[339484832,1727631032976,-71781.42424812,0.00010858,2]
[339484833,1727631032985,-17328.654,0.00010858,2]
[339484834,1727631032995,-3692.4363543,0.00010858,2]
[339484835,1727631033006,-3807.5636457,0.00010858,2]
[339484836,1727631033016,-3386.27557811,0.00010858,2]
[339484837,1727631033025,-150.0,0.00010866,2]
[339484838,1727631033035,-150.0,0.00010886,2]
[339484839,1727631033044,-153.63575951,0.00010891,2]
[339484840,1727631033053,-151.16962535,0.00010895,2]
[339484841,1727631033066,-441.768301,0.00010895,2]
[339484842,1727631033077,-236.629528,0.00010895,2]
[339484843,1727631033087,-202.31723475,0.00010895,2]
[339484844,1727631033098,-372.32787825,0.00010895,2]
[339484845,1727631033108,-2166.2088941,0.00010896,2]
[339484846,1727631033121,-46231.5648059,0.00010896,2]
[339484847,1727631033131,-1000.0,0.00010896,2]
[339484848,1727631033141,-408.43518259,0.00010903,2]
[339484849,1727631033153,-1091.56481741,0.00010903,2]
[339484850,1727631033163,-25.65654297,0.00010945,2]
[339484851,1727631033175,-974.34345703,0.00010945,2]
[339484852,1727631033184,-468.5016,0.00010945,2]
[339484853,1727631033194,-150.9,0.00010948,2]
[339484854,1727631033204,-196.88204439,0.00010948,2]
[339484855,1727631033213,-150.0,0.00010954,2]
[339484856,1727631033223,-206.74981506,0.00010955,2]
[339484857,1727631033234,-1433.92938975,0.00010957,3]
[339484858,1727631033243,-431.33690448,0.00010958,2]
[339484859,1727631033253,-500.0,0.00010958,2]
[339484860,1727631033263,-491.05929734,0.00010958,2]
[339484861,1727631033275,-8.94070266,0.00010958,2]
[339484862,1727631033285,-500.0,0.00010958,2]
[339484864,1727631033294,-36.50572515,0.00010958,2]
[339484867,1727631033308,-464.18995768,0.00010958,2]
[339484869,1727631033318,-500.0,0.00010958,2]
[339484871,1727631033328,-500.0,0.00010958,2]
[339484872,1727631033338,-500.0,0.00010958,2]
[339484873,1727631033348,-307.65685571,0.00010958,2]
[339484874,1727631033357,-103.31388159,0.00010958,2]
[339484875,1727631033370,-397.23089839,0.00010958,2]
[339484876,1727631033380,-500.0,0.00010958,2]
[339484877,1727631033390,-500.0,0.00010958,2]
[339484878,1727631033400,-500.0,0.00010958,2]
[339484879,1727631033410,-500.0,0.00010958,2]
[339484880,1727631033419,-58.29637825,0.00010958,2]
[339484881,1727631033431,-441.70362175,0.00010958,2]
[339484882,1727631033441,-501.27059483,0.00010958,2]
[339484883,1727631033453,-505.17,0.00010958,2]
[339484884,1727631033462,-500.0,0.00010958,2]
[339484885,1727631033471,-500.0,0.00010958,2]
[339484886,1727631033482,-683.96,0.00010958,2]
[339484887,1727631033491,-500.37000208,0.00010958,2]
[339484890,1727631033501,-500.0,0.00010958,2]
[339484891,1727631033511,-466.10188061,0.00010958,2]
[339484894,1727631033523,-33.89811939,0.00010958,2]
[339484896,1727631033533,-500.0,0.00010958,2]
[339484898,1727631033543,-681.21,0.00010958,2]
[339484900,1727631033553,-500.0,0.00010958,2]
[339484902,1727631033564,-500.0,0.00010958,2]
[339484904,1727631033573,-500.0,0.00010958,2]
[339484906,1727631033583,-500.0,0.00010958,2]
[339484908,1727631033593,-500.0,0.00010958,2]
[339484910,1727631033603,-500.0,0.00010958,2]
[339484911,1727631033612,-500.0,0.00010958,2]
[339484913,1727631033622,-500.0,0.00010958,2]
[339484914,1727631033631,-500.0,0.00010958,2]
[339484915,1727631033641,-500.0,0.00010958,2]
[339484916,1727631033650,-459.1302083,0.00010958,2]
[339484917,1727631033663,-40.8697917,0.00010958,2]
[339484918,1727631033672,-500.32454422,0.00010958,2]
[339484919,1727631033681,-500.0,0.00010958,2]
[339484920,1727631033691,-500.0,0.00010958,2]
[339484921,1727631033700,-500.0,0.00010958,2]
[339484922,1727631033710,-500.0,0.00010958,2]
[339484923,1727631033721,-500.0,0.00010958,2]
[339484924,1727631033730,-500.0,0.00010958,2]
[339484925,1727631033740,-500.0,0.00010958,2]
[339484926,1727631033750,-500.0,0.00010958,2]
[339484927,1727631033759,-255.39044793,0.00010958,2]
[339484928,1727631033772,-244.60955207,0.00010958,2]
[339484929,1727631033781,-500.0,0.00010958,2]
[339484930,1727631033792,-500.0,0.00010958,2]
[339484931,1727631033805,-500.0,0.00010958,2]
[339484932,1727631033815,-248.80179856,0.00010958,2]
[339484933,1727631033824,-398.98530377,0.00010958,2]
[339484934,1727631033839,-913.20469623,0.00010958,2]
[339484935,1727631033848,-500.0,0.00010958,2]
[339484936,1727631033858,-500.0,0.00010958,2]
[339484937,1727631033867,-500.0,0.00010958,2]
[339484938,1727631033878,-500.0,0.00010958,2]
[339484939,1727631033887,-500.0,0.00010958,2]
[339484940,1727631033897,-500.0,0.00010958,2]
[339484941,1727631033906,-500.0,0.00010958,2]
[339484942,1727631033916,-500.0,0.00010958,2]
[339484943,1727631033926,-500.0,0.00010958,2]
[339484944,1727631033935,-500.0,0.00010958,2]
[339484945,1727631033944,-500.0,0.00010958,2]
[339484946,1727631033954,-500.0,0.00010958,2]
[339484947,1727631033964,-515.96690953,0.00010958,2]
[339484948,1727631033972,-500.0,0.00010958,2]
[339484949,1727631033982,-500.0,0.00010958,2]
[339484950,1727631033991,-500.0,0.00010958,2]
[339484951,1727631034000,-500.0,0.00010958,2]
[339484952,1727631034010,-500.0,0.00010958,2]
[339484953,1727631034019,-500.0,0.00010958,2]
[339484954,1727631034028,-500.0,0.00010958,2]
[339484955,1727631034037,-500.0,0.00010958,2]
[339484956,1727631034046,-500.0,0.00010958,2]
[339484957,1727631034057,-500.0,0.00010958,2]
[339484958,1727631034066,-500.0,0.00010958,2]
[339484959,1727631034076,-500.0,0.00010958,2]
[339484960,1727631034085,-500.0,0.00010958,2]
[339484961,1727631034094,-500.0,0.00010958,2]
[339484962,1727631034104,-500.0,0.00010958,2]
[339484963,1727631034114,-558.91723936,0.00010958,2]
[339484964,1727631034123,-635.57007516,0.00010958,2]
[339484965,1727631034133,-500.0,0.00010958,2]
[339484966,1727631034143,-500.0,0.00010958,2]
[339484967,1727631034152,-500.0,0.00010958,2]
[339484968,1727631034162,-500.0,0.00010958,2]
[339484969,1727631034171,-500.0,0.00010958,2]
[339484970,1727631034181,-500.0,0.00010958,2]
[339484971,1727631034190,-500.0,0.00010958,2]
[339484972,1727631034200,-500.0,0.00010958,2]
[339484973,1727631034210,-500.0,0.00010958,2]
[339484974,1727631034220,-500.0,0.00010958,2]
[339484975,1727631034230,-462.20468855,0.00010958,2]
[339484976,1727631034245,-37.79531145,0.00010958,2]
[339484977,1727631034255,-603.54371958,0.00010958,2]
[339484978,1727631034265,-517.45165043,0.00010958,2]
[339484979,1727631034484,-500.0,0.00010958,2]
[339484980,1727631034494,-500.0,0.00010958,2]
[339484981,1727631034503,-500.0,0.00010958,2]
[339484982,1727631034514,-500.0,0.00010958,2]
[339484983,1727631034524,-500.0,0.00010958,2]
[339484984,1727631034534,-500.0,0.00010958,2]
[339484985,1727631034543,-91.71074417,0.00010958,2]
[339484986,1727631034898,-408.28925583,0.00010958,2]
[339484987,1727631034910,-70.3047075,0.00010958,2]
[339484988,1727631034921,-261.15578167,0.00010958,2]
[339484989,1727631034934,-168.53951083,0.00010958,2]
[339484990,1727631034944,-349.31117613,0.00010958,2]
[339484991,1727631034956,-150.68882387,0.00010958,2]
[339484992,1727631034966,-626.44449596,0.00010958,2]
[339484993,1727631034976,-500.0,0.00010958,2]
[339484994,1727631034986,-193.92885187,0.00010958,2]
[339484995,1727631034996,-500.0,0.00010958,2]
[339484996,1727631035005,-500.0,0.00010958,2]
[339484997,1727631035015,-500.0,0.00010958,2]
[339484998,1727631035024,-500.0,0.00010958,2]
[339484999,1727631035033,-469.96542268,0.00010958,2]
[339485000,1727631035045,-30.03457732,0.00010958,2]
[339485001,1727631035055,-500.0,0.00010958,2]
[339485002,1727631035065,-500.0,0.00010958,2]
[339485003,1727631035075,-500.0,0.00010958,2]
[339485004,1727631035084,-500.0,0.00010958,2]
[339485005,1727631035094,-500.0,0.00010958,2]
[339485006,1727631035103,-500.0,0.00010958,2]